[Event "Late-Titled-Tuesday-Blitz-September-26-2023"]
[Site "Chess.com"]
[Date "2023.09.26"]
[Round "8"]
[White "Nekoo04"]
[Black "Lion_DL"]
[Result "0-1"]
[WhiteElo "2309"]
[BlackElo "2493"]
[TimeControl "180+1"]
[EndTime "15:24:25 PDT"]
[Termination "Lion_DL won by resignation"]

1. d4 {[%clk 0:03:00.9]} 1... Nf6 {[%clk 0:02:54.3]} 2. c4 {[%clk 0:02:59]} 2...
c5 {[%clk 0:02:52.2]} 3. d5 {[%clk 0:02:58.7]} 3... e5 {[%clk 0:02:51.6]} 4. Nc3
{[%clk 0:02:57.6]} 4... d6 {[%clk 0:02:49.1]} 5. e4 {[%clk 0:02:57.8]} 5... g6
{[%clk 0:02:46.9]} 6. Nf3 {[%clk 0:02:55.6]} 6... Bg7 {[%clk 0:02:47.5]} 7. Be2
{[%clk 0:02:56.2]} 7... a6 {[%clk 0:02:47.7]} 8. Bg5 {[%clk 0:02:53.6]} 8... h6
{[%clk 0:02:45.6]} 9. Bh4 {[%clk 0:02:53.5]} 9... O-O {[%clk 0:02:44.4]} 10. Nd2
{[%clk 0:02:52.8]} 10... Nbd7 {[%clk 0:02:44.7]} 11. O-O {[%clk 0:02:51.6]}
11... g5 {[%clk 0:02:39.1]} 12. Bg3 {[%clk 0:02:51]} 12... Ne8 {[%clk
0:02:37.5]} 13. Bg4 {[%clk 0:02:50.5]} 13... Ndf6 {[%clk 0:02:36.7]} 14. Bxc8
{[%clk 0:02:49.7]} 14... Qxc8 {[%clk 0:02:32.6]} 15. a3 {[%clk 0:02:49.8]} 15...
Nh7 {[%clk 0:02:28.3]} 16. b4 {[%clk 0:02:48.5]} 16... b6 {[%clk 0:02:26.1]} 17.
Rb1 {[%clk 0:02:41.8]} 17... Ra7 {[%clk 0:02:19.4]} 18. Qa4 {[%clk 0:02:36.5]}
18... h5 {[%clk 0:02:11.5]} 19. f3 {[%clk 0:02:15.4]} 19... h4 {[%clk
0:02:01.4]} 20. Bf2 {[%clk 0:02:12.8]} 20... f5 {[%clk 0:02:02.3]} 21. bxc5
{[%clk 0:02:11]} 21... bxc5 {[%clk 0:02:00.3]} 22. exf5 {[%clk 0:02:10.5]} 22...
Qxf5 {[%clk 0:01:55.9]} 23. h3 {[%clk 0:02:01.3]} 23... Nhf6 {[%clk 0:01:50]}
24. Nde4 {[%clk 0:01:53.4]} 24... Nh5 {[%clk 0:01:49.1]} 25. Rb6 {[%clk
0:01:51.7]} 25... Nf4 {[%clk 0:01:27.8]} 26. Rb8 {[%clk 0:00:58.7]} 26... Nxg2
{[%clk 0:00:41.1]} 27. Rxe8 {[%clk 0:00:20.5]} 27... Nf4 {[%clk 0:00:39.1]} 28.
Rxf8+ {[%clk 0:00:20.2]} 28... Bxf8 {[%clk 0:00:40]} 29. Qe8 {[%clk 0:00:17.3]}
29... Qxh3 {[%clk 0:00:35.5]} 30. Qg6+ {[%clk 0:00:12.2]} 30... Nxg6 {[%clk
0:00:34.8]} 0-1

[Event "Late-Titled-Tuesday-Blitz-September-26-2023"]
[Site "Chess.com"]
[Date "2023.09.26"]
[Round "8"]
[White "lefonghua"]
[Black "brm72"]
[Result "1-0"]
[WhiteElo "2637"]
[BlackElo "2513"]
[TimeControl "180+1"]
[EndTime "15:24:31 PDT"]
[Termination "lefonghua won on time"]

1. d4 {[%clk 0:03:00.9]} 1... Nf6 {[%clk 0:02:58.1]} 2. c4 {[%clk 0:03:01.3]}
2... g6 {[%clk 0:02:57.5]} 3. Nc3 {[%clk 0:03:01.7]} 3... d5 {[%clk 0:02:58]} 4.
cxd5 {[%clk 0:03:02.6]} 4... Nxd5 {[%clk 0:02:58.9]} 5. e4 {[%clk 0:03:03.2]}
5... Nxc3 {[%clk 0:02:58.1]} 6. bxc3 {[%clk 0:03:04.1]} 6... Bg7 {[%clk
0:02:58]} 7. Nf3 {[%clk 0:03:04.9]} 7... c5 {[%clk 0:02:58.1]} 8. Rb1 {[%clk
0:03:05.2]} 8... O-O {[%clk 0:02:56.2]} 9. Be2 {[%clk 0:03:05.4]} 9... Qa5
{[%clk 0:02:38.2]} 10. Bd2 {[%clk 0:03:03.2]} 10... Qxa2 {[%clk 0:02:35.8]} 11.
O-O {[%clk 0:03:03]} 11... cxd4 {[%clk 0:02:32.7]} 12. cxd4 {[%clk 0:03:03.9]}
12... Nc6 {[%clk 0:02:31.8]} 13. d5 {[%clk 0:02:57.1]} 13... Ne5 {[%clk
0:02:30.5]} 14. Nxe5 {[%clk 0:02:50.2]} 14... Bxe5 {[%clk 0:02:31.4]} 15. Be3
{[%clk 0:02:48.8]} 15... Qa5 {[%clk 0:02:20.9]} 16. f4 {[%clk 0:02:40.4]} 16...
Bg7 {[%clk 0:02:20.6]} 17. e5 {[%clk 0:02:39]} 17... Rd8 {[%clk 0:02:20.3]} 18.
Bf3 {[%clk 0:02:36.2]} 18... b6 {[%clk 0:02:12.2]} 19. d6 {[%clk 0:02:28.3]}
19... Bf5 {[%clk 0:02:02.3]} 20. Bxa8 {[%clk 0:02:24.3]} 20... exd6 {[%clk
0:01:57.4]} 21. Ra1 {[%clk 0:02:14.3]} 21... Qc3 {[%clk 0:01:52.9]} 22. Bd4
{[%clk 0:02:04.8]} 22... Qc4 {[%clk 0:01:49.9]} 23. Ra4 {[%clk 0:01:37.1]} 23...
Qb5 {[%clk 0:01:38.5]} 24. exd6 {[%clk 0:01:15.7]} 24... Rxa8 {[%clk 0:00:32.1]}
25. Bxg7 {[%clk 0:01:12.9]} 25... Kxg7 {[%clk 0:00:33]} 26. Qd4+ {[%clk
0:01:11.2]} 26... Kg8 {[%clk 0:00:32.3]} 27. Re1 {[%clk 0:00:54.7]} 27... a5
{[%clk 0:00:01.4]} 28. Rc4 {[%clk 0:00:46.7]} 28... Rd8 {[%clk 0:00:02.3]} 29.
Rc7 {[%clk 0:00:42.9]} 29... Be6 {[%clk 0:00:02.5]} 30. h4 {[%clk 0:00:30.5]}
1-0

[Event "Late-Titled-Tuesday-Blitz-September-26-2023"]
[Site "Chess.com"]
[Date "2023.09.26"]
[Round "8"]
[White "JacksterThePro"]
[Black "Mariia89"]
[Result "1-0"]
[WhiteElo "2414"]
[BlackElo "2066"]
[TimeControl "180+1"]
[EndTime "15:24:31 PDT"]
[Termination "JacksterThePro won on time"]

1. e4 {[%clk 0:02:59.3]} 1... c6 {[%clk 0:03:00.3]} 2. c4 {[%clk 0:02:56.2]}
2... d5 {[%clk 0:03:00.9]} 3. cxd5 {[%clk 0:02:57.1]} 3... cxd5 {[%clk
0:03:00.9]} 4. exd5 {[%clk 0:02:58]} 4... Qxd5 {[%clk 0:03:00.6]} 5. Nc3 {[%clk
0:02:54]} 5... Qa5 {[%clk 0:03:00.4]} 6. Nf3 {[%clk 0:02:52.7]} 6... Nc6 {[%clk
0:02:58.9]} 7. Bc4 {[%clk 0:02:52.8]} 7... e6 {[%clk 0:02:45.9]} 8. O-O {[%clk
0:02:51.5]} 8... Nf6 {[%clk 0:02:45.6]} 9. d4 {[%clk 0:02:50.1]} 9... Be7 {[%clk
0:02:29.3]} 10. Re1 {[%clk 0:02:41.2]} 10... O-O {[%clk 0:02:28.9]} 11. Ne5
{[%clk 0:02:38.4]} 11... Nb4 {[%clk 0:02:10.1]} 12. Bg5 {[%clk 0:02:29.4]} 12...
h6 {[%clk 0:02:04.7]} 13. Bd2 {[%clk 0:02:28.3]} 13... Qd8 {[%clk 0:02:04.3]}
14. Be3 {[%clk 0:02:16.6]} 14... Nbd5 {[%clk 0:01:21.1]} 15. Qf3 {[%clk
0:02:15.4]} 15... Nxe3 {[%clk 0:01:15.5]} 16. fxe3 {[%clk 0:02:07.3]} 16... Bd7
{[%clk 0:00:55.3]} 17. Rf1 {[%clk 0:02:00.6]} 17... Rc8 {[%clk 0:00:44]} 18. Bb3
{[%clk 0:02:00.2]} 18... Bc6 {[%clk 0:00:42.4]} 19. Qh3 {[%clk 0:01:59.4]} 19...
Bd5 {[%clk 0:00:28.7]} 20. Nxd5 {[%clk 0:01:55.3]} 20... exd5 {[%clk 0:00:21.9]}
21. Nd3 {[%clk 0:01:39]} 21... Ne4 {[%clk 0:00:20.8]} 22. Nf4 {[%clk 0:01:39.3]}
22... Nd2 {[%clk 0:00:18.5]} 23. Bxd5 {[%clk 0:01:39.5]} 23... Nxf1 {[%clk
0:00:18]} 24. Rxf1 {[%clk 0:01:40.4]} 24... Bg5 {[%clk 0:00:17.3]} 25. Bb3
{[%clk 0:01:31.4]} 25... Rc6 {[%clk 0:00:12.1]} 26. Qf3 {[%clk 0:01:21.7]} 26...
Bxf4 {[%clk 0:00:11.1]} 27. Qxf4 {[%clk 0:01:18.5]} 27... Rf6 {[%clk 0:00:11.2]}
28. Qe5 {[%clk 0:01:18.4]} 28... Rxf1+ {[%clk 0:00:11.1]} 29. Kxf1 {[%clk
0:01:18.6]} 29... Qh4 {[%clk 0:00:06.9]} 30. Ke2 {[%clk 0:01:15.6]} 30... Qg4+
{[%clk 0:00:05.2]} 31. Kf2 {[%clk 0:01:15]} 31... Rc8 {[%clk 0:00:04.4]} 32. h3
{[%clk 0:01:13.5]} 32... Qg6 {[%clk 0:00:03.5]} 33. Kg1 {[%clk 0:01:10.8]} 33...
Rc1+ {[%clk 0:00:03.8]} 34. Kh2 {[%clk 0:01:10.7]} 34... Rf1 {[%clk 0:00:02.9]}
35. Bd5 {[%clk 0:00:53.4]} 1-0

[Event "Late-Titled-Tuesday-Blitz-September-26-2023"]
[Site "Chess.com"]
[Date "2023.09.26"]
[Round "8"]
[White "cristiano78"]
[Black "leoduarte"]
[Result "1-0"]
[WhiteElo "2258"]
[BlackElo "2453"]
[TimeControl "180+1"]
[EndTime "15:24:32 PDT"]
[Termination "cristiano78 won on time"]

1. d4 {[%clk 0:03:00.3]} 1... Nf6 {[%clk 0:02:54]} 2. c4 {[%clk 0:03:00.5]} 2...
e6 {[%clk 0:02:53.8]} 3. Nf3 {[%clk 0:03:00.5]} 3... d5 {[%clk 0:02:54]} 4. Nc3
{[%clk 0:03:00.3]} 4... Bb4 {[%clk 0:02:47.3]} 5. Bg5 {[%clk 0:02:59.9]} 5... h6
{[%clk 0:02:44.2]} 6. Bxf6 {[%clk 0:02:59.6]} 6... Qxf6 {[%clk 0:02:44.9]} 7.
Rc1 {[%clk 0:02:59.9]} 7... O-O {[%clk 0:02:43.6]} 8. e3 {[%clk 0:02:57.5]} 8...
dxc4 {[%clk 0:02:43.2]} 9. Bxc4 {[%clk 0:02:57.2]} 9... c5 {[%clk 0:02:43.3]}
10. O-O {[%clk 0:02:56.1]} 10... cxd4 {[%clk 0:02:41.3]} 11. Nxd4 {[%clk
0:02:55.5]} 11... Bd7 {[%clk 0:02:39.8]} 12. a3 {[%clk 0:02:54.9]} 12... Bxc3
{[%clk 0:02:21.4]} 13. Rxc3 {[%clk 0:02:54.5]} 13... Nc6 {[%clk 0:02:22]} 14.
Nxc6 {[%clk 0:02:54.5]} 14... Bxc6 {[%clk 0:02:22.6]} 15. Be2 {[%clk 0:02:51.2]}
15... Rfd8 {[%clk 0:02:20.2]} 16. Qc1 {[%clk 0:02:42.8]} 16... Qg5 {[%clk
0:02:09.8]} 17. f3 {[%clk 0:02:38.1]} 17... Rd7 {[%clk 0:01:56.8]} 18. e4 {[%clk
0:02:29.1]} 18... Qxc1 {[%clk 0:01:24.7]} 19. Rfxc1 {[%clk 0:02:26.3]} 19...
Rad8 {[%clk 0:01:25.2]} 20. Kf2 {[%clk 0:02:24.2]} 20... Rd2 {[%clk 0:01:24.7]}
21. R1c2 {[%clk 0:02:22.8]} 21... Bb5 {[%clk 0:01:15.1]} 22. Ke3 {[%clk
0:02:15.9]} 22... Rxc2 {[%clk 0:00:52.2]} 23. Rxc2 {[%clk 0:02:14.2]} 23... Bc6
{[%clk 0:00:51.6]} 24. b4 {[%clk 0:02:12.7]} 24... a6 {[%clk 0:00:48.4]} 25.
Bxa6 {[%clk 0:02:11.6]} 25... Ba4 {[%clk 0:00:44]} 26. Bd3 {[%clk 0:01:43.9]}
26... Bxc2 {[%clk 0:00:41]} 27. Bxc2 {[%clk 0:01:44.8]} 27... Kf8 {[%clk
0:00:40.9]} 28. a4 {[%clk 0:01:44.4]} 28... Ke7 {[%clk 0:00:40.4]} 29. a5 {[%clk
0:01:44]} 29... Kd6 {[%clk 0:00:37.4]} 30. Bd3 {[%clk 0:01:43.1]} 30... Kc6
{[%clk 0:00:34.8]} 31. b5+ {[%clk 0:01:42.6]} 31... Kc5 {[%clk 0:00:33.9]} 32.
a6 {[%clk 0:01:42.6]} 32... bxa6 {[%clk 0:00:26.1]} 33. bxa6 {[%clk 0:01:42.6]}
33... Kb6 {[%clk 0:00:26.4]} 34. f4 {[%clk 0:01:41.9]} 34... Rc8 {[%clk
0:00:24.1]} 35. g4 {[%clk 0:01:39.3]} 35... g5 {[%clk 0:00:19.4]} 36. e5 {[%clk
0:01:27.7]} 36... Rc1 {[%clk 0:00:18.7]} 37. f5 {[%clk 0:01:27.5]} 37... Ra1
{[%clk 0:00:14.8]} 38. Kd4 {[%clk 0:01:17.2]} 38... Ra4+ {[%clk 0:00:13.8]} 39.
Bc4 {[%clk 0:01:17.1]} 39... Ra3 {[%clk 0:00:11.1]} 40. fxe6 {[%clk 0:01:16.1]}
40... fxe6 {[%clk 0:00:11.3]} 41. Bxe6 {[%clk 0:01:16.3]} 41... Kxa6 {[%clk
0:00:08.8]} 42. Bf5 {[%clk 0:01:16]} 42... Kb6 {[%clk 0:00:08.5]} 43. Kd5 {[%clk
0:01:15.9]} 43... Kc7 {[%clk 0:00:04]} 44. Ke6 {[%clk 0:01:15.9]} 44... Rh3
{[%clk 0:00:03.3]} 45. Kf6 {[%clk 0:01:15.6]} 45... Rxh2 {[%clk 0:00:03.7]} 46.
e6 {[%clk 0:01:16.5]} 46... Re2 {[%clk 0:00:03.6]} 47. Kg6 {[%clk 0:01:16.5]}
47... Kd6 {[%clk 0:00:01.1]} 48. Kxh6 {[%clk 0:01:16.2]} 1-0

[Event "Late-Titled-Tuesday-Blitz-September-26-2023"]
[Site "Chess.com"]
[Date "2023.09.26"]
[Round "8"]
[White "Vadim_Biliy"]
[Black "dorpato"]
[Result "1-0"]
[WhiteElo "2319"]
[BlackElo "2033"]
[TimeControl "180+1"]
[EndTime "15:24:35 PDT"]
[Termination "Vadim_Biliy won by resignation"]

1. d4 {[%clk 0:03:00.9]} 1... Nf6 {[%clk 0:02:57.9]} 2. Nf3 {[%clk 0:03:00.1]}
2... g6 {[%clk 0:02:57.8]} 3. e3 {[%clk 0:03:00.1]} 3... d5 {[%clk 0:02:57.6]}
4. Be2 {[%clk 0:02:58.2]} 4... Bg7 {[%clk 0:02:58.2]} 5. b4 {[%clk 0:02:57.3]}
5... O-O {[%clk 0:02:58.4]} 6. O-O {[%clk 0:02:56.9]} 6... c6 {[%clk 0:02:57.1]}
7. c3 {[%clk 0:02:55.5]} 7... Bf5 {[%clk 0:02:57.1]} 8. a4 {[%clk 0:02:47.6]}
8... Nbd7 {[%clk 0:02:55.3]} 9. Ba3 {[%clk 0:02:46.8]} 9... Re8 {[%clk
0:02:52.5]} 10. Nh4 {[%clk 0:02:32.7]} 10... Bxb1 {[%clk 0:02:45.8]} 11. Rxb1
{[%clk 0:02:31]} 11... e5 {[%clk 0:02:45.6]} 12. Nf3 {[%clk 0:02:07.2]} 12... e4
{[%clk 0:02:37.7]} 13. Nd2 {[%clk 0:02:07.3]} 13... Nf8 {[%clk 0:02:36.1]} 14.
c4 {[%clk 0:02:07.1]} 14... N6d7 {[%clk 0:02:24.5]} 15. b5 {[%clk 0:02:06.3]}
15... f5 {[%clk 0:02:18.9]} 16. Qb3 {[%clk 0:01:54.7]} 16... Nf6 {[%clk
0:02:11.7]} 17. bxc6 {[%clk 0:01:47.5]} 17... bxc6 {[%clk 0:02:10.6]} 18. Qb7
{[%clk 0:01:46.9]} 18... Re6 {[%clk 0:01:47.9]} 19. Bc5 {[%clk 0:01:37.5]} 19...
a6 {[%clk 0:01:35]} 20. Rb6 {[%clk 0:01:25.1]} 20... N8d7 {[%clk 0:01:15.6]} 21.
Rxc6 {[%clk 0:01:19.8]} 21... Rxc6 {[%clk 0:01:06]} 22. Qxc6 {[%clk 0:01:19.1]}
22... Nxc5 {[%clk 0:01:04.2]} 23. Qxc5 {[%clk 0:01:15.3]} 23... Rc8 {[%clk
0:00:59.6]} 24. Qa7 {[%clk 0:01:08]} 24... Qa5 {[%clk 0:00:50.3]} 25. Nb3 {[%clk
0:00:46.7]} 25... Qxa4 {[%clk 0:00:48.3]} 26. Nc5 {[%clk 0:00:46.7]} 26... Qa2
{[%clk 0:00:41.1]} 27. Re1 {[%clk 0:00:40.1]} 27... dxc4 {[%clk 0:00:38.1]} 28.
Qb7 {[%clk 0:00:33.6]} 28... Rf8 {[%clk 0:00:27.9]} 29. Ne6 {[%clk 0:00:27.1]}
29... Rf7 {[%clk 0:00:26.9]} 30. Qc8+ {[%clk 0:00:26.6]} 30... Bf8 {[%clk
0:00:27]} 31. Nxf8 {[%clk 0:00:25.1]} 31... Rxf8 {[%clk 0:00:27.1]} 32. Bxc4+
{[%clk 0:00:24.7]} 32... Kg7 {[%clk 0:00:20.5]} 33. Qb7+ {[%clk 0:00:23.2]}
33... Rf7 {[%clk 0:00:20.3]} 34. Qxf7+ {[%clk 0:00:22.5]} 1-0

[Event "Late-Titled-Tuesday-Blitz-September-26-2023"]
[Site "Chess.com"]
[Date "2023.09.26"]
[Round "8"]
[White "PapaieDudu"]
[Black "Yushko_Olga"]
[Result "1-0"]
[WhiteElo "2410"]
[BlackElo "2066"]
[TimeControl "180+1"]
[EndTime "15:24:37 PDT"]
[Termination "PapaieDudu won by resignation"]

1. e4 {[%clk 0:03:00.9]} 1... d6 {[%clk 0:02:57.5]} 2. Nf3 {[%clk 0:02:57.8]}
2... e5 {[%clk 0:02:57.5]} 3. d4 {[%clk 0:02:58.4]} 3... Nf6 {[%clk 0:02:57.2]}
4. Nc3 {[%clk 0:02:57.5]} 4... Nbd7 {[%clk 0:02:56.5]} 5. Bc4 {[%clk 0:02:57.8]}
5... Be7 {[%clk 0:02:57.2]} 6. Bxf7+ {[%clk 0:02:57.2]} 6... Kxf7 {[%clk
0:02:57.3]} 7. Ng5+ {[%clk 0:02:57.1]} 7... Kg8 {[%clk 0:02:56.4]} 8. Ne6 {[%clk
0:02:57.1]} 8... Qe8 {[%clk 0:02:56]} 9. Nxc7 {[%clk 0:02:56.6]} 9... Qd8 {[%clk
0:02:56.5]} 10. Nxa8 {[%clk 0:02:53.3]} 10... b6 {[%clk 0:02:51]} 11. dxe5
{[%clk 0:02:50.4]} 11... Nxe5 {[%clk 0:02:51.1]} 12. Nd5 {[%clk 0:02:48.6]}
12... Bb7 {[%clk 0:02:42]} 13. Nac7 {[%clk 0:02:46.7]} 13... Nxe4 {[%clk
0:02:35]} 14. O-O {[%clk 0:02:42.1]} 14... h6 {[%clk 0:02:25.6]} 15. f4 {[%clk
0:02:38.4]} 15... Ng6 {[%clk 0:02:08.1]} 16. Qg4 {[%clk 0:02:34.3]} 16... Kh7
{[%clk 0:02:01.7]} 17. f5 {[%clk 0:02:33.1]} 17... Ne5 {[%clk 0:01:51.4]} 18.
Qxe4 {[%clk 0:02:33.3]} 18... Qxc7 {[%clk 0:01:45.4]} 19. f6+ {[%clk 0:02:26.4]}
19... g6 {[%clk 0:01:42.7]} 20. fxe7 {[%clk 0:02:24.5]} 20... Qc5+ {[%clk
0:01:38.8]} 21. Be3 {[%clk 0:02:20.2]} 21... Qxd5 {[%clk 0:01:39]} 22. Qxd5
{[%clk 0:02:16.1]} 22... Bxd5 {[%clk 0:01:38.8]} 23. Rad1 {[%clk 0:02:16.4]}
23... Bc6 {[%clk 0:01:25.9]} 24. Rxd6 {[%clk 0:02:15.8]} 24... Re8 {[%clk
0:01:25]} 25. Bd4 {[%clk 0:02:14.6]} 25... Bb5 {[%clk 0:01:21.3]} 26. Rf2 {[%clk
0:02:06]} 26... Rxe7 {[%clk 0:01:09.7]} 27. h3 {[%clk 0:02:04.9]} 27... Nc6
{[%clk 0:00:44.2]} 28. Bc3 {[%clk 0:02:04.2]} 28... Rc7 {[%clk 0:00:12.1]} 29.
b3 {[%clk 0:01:18.6]} 29... Ne7 {[%clk 0:00:11.7]} 30. Bb2 {[%clk 0:01:14]}
30... Nf5 {[%clk 0:00:11]} 31. Rdd2 {[%clk 0:01:13.5]} 31... Re7 {[%clk
0:00:11.4]} 32. Kh2 {[%clk 0:01:11.7]} 32... Re1 {[%clk 0:00:11.2]} 33. c4
{[%clk 0:01:07.5]} 33... Bc6 {[%clk 0:00:11.4]} 34. Rde2 {[%clk 0:01:06.7]}
34... Rd1 {[%clk 0:00:10.4]} 35. Re6 {[%clk 0:01:03.6]} 35... Be4 {[%clk
0:00:09.6]} 36. Rxe4 {[%clk 0:01:01.7]} 36... Nd6 {[%clk 0:00:07.6]} 37. Re7+
{[%clk 0:00:58.5]} 37... Kg8 {[%clk 0:00:07.3]} 38. Rg7+ {[%clk 0:00:58.7]} 1-0

[Event "Late-Titled-Tuesday-Blitz-September-26-2023"]
[Site "Chess.com"]
[Date "2023.09.26"]
[Round "8"]
[White "nitpicker"]
[Black "orestn"]
[Result "0-1"]
[WhiteElo "2245"]
[BlackElo "2416"]
[TimeControl "180+1"]
[EndTime "15:24:44 PDT"]
[Termination "orestn won on time"]

1. d4 {[%clk 0:03:00.9]} 1... d5 {[%clk 0:02:56.4]} 2. c4 {[%clk 0:03:00.7]}
2... e6 {[%clk 0:02:56.6]} 3. Nf3 {[%clk 0:03:00.4]} 3... Nf6 {[%clk 0:02:56.8]}
4. g3 {[%clk 0:03:00.8]} 4... dxc4 {[%clk 0:02:52.3]} 5. Bg2 {[%clk 0:03:00]}
5... Bd7 {[%clk 0:02:52.8]} 6. Ne5 {[%clk 0:02:58.4]} 6... Bc6 {[%clk
0:02:53.3]} 7. Nxc6 {[%clk 0:02:58.2]} 7... Nxc6 {[%clk 0:02:54]} 8. e3 {[%clk
0:02:53.1]} 8... Qd7 {[%clk 0:02:51.7]} 9. O-O {[%clk 0:02:49.9]} 9... O-O-O
{[%clk 0:02:50.9]} 10. Qe2 {[%clk 0:02:49.7]} 10... h5 {[%clk 0:02:49.2]} 11. h3
{[%clk 0:02:26.5]} 11... Nd5 {[%clk 0:02:38.5]} 12. Qxc4 {[%clk 0:02:18.5]}
12... f5 {[%clk 0:02:38.2]} 13. h4 {[%clk 0:01:52.5]} 13... g5 {[%clk
0:02:37.6]} 14. hxg5 {[%clk 0:01:42.5]} 14... h4 {[%clk 0:02:37.7]} 15. gxh4
{[%clk 0:01:19.7]} 15... Rxh4 {[%clk 0:02:36.3]} 16. f4 {[%clk 0:01:11]} 16...
Nb6 {[%clk 0:02:16.5]} 17. Qe2 {[%clk 0:01:09.6]} 17... Bd6 {[%clk 0:02:00.5]}
18. Nd2 {[%clk 0:01:07.6]} 18... Rdh8 {[%clk 0:02:00.1]} 19. Nf3 {[%clk
0:01:07.6]} 19... R4h5 {[%clk 0:01:51.7]} 20. Bd2 {[%clk 0:01:01.3]} 20... Nd5
{[%clk 0:01:31.5]} 21. a3 {[%clk 0:00:57.1]} 21... Qh7 {[%clk 0:01:18.5]} 22.
Kf2 {[%clk 0:00:53.3]} 22... Qd7 {[%clk 0:01:01.7]} 23. Rh1 {[%clk 0:00:42.7]}
23... Rxh1 {[%clk 0:00:59.1]} 24. Rxh1 {[%clk 0:00:41.7]} 24... Rxh1 {[%clk
0:01:00]} 25. Bxh1 {[%clk 0:00:41.7]} 25... Nce7 {[%clk 0:01:00.7]} 26. Ne5
{[%clk 0:00:16.2]} 26... Bxe5 {[%clk 0:01:00.1]} 27. fxe5 {[%clk 0:00:15.8]}
27... c6 {[%clk 0:00:55.1]} 28. Bf3 {[%clk 0:00:11.8]} 28... Ng6 {[%clk
0:00:48.8]} 29. Bh5 {[%clk 0:00:10.5]} 29... Qh7 {[%clk 0:00:46.6]} 30. Bxg6
{[%clk 0:00:09.8]} 30... Qxg6 {[%clk 0:00:46]} 31. e4 {[%clk 0:00:10.3]} 31...
fxe4 {[%clk 0:00:44.4]} 32. Qg4 {[%clk 0:00:10.2]} 32... Kd7 {[%clk 0:00:42.1]}
33. Kg3 {[%clk 0:00:08.5]} 33... e3 {[%clk 0:00:39]} 34. Be1 {[%clk 0:00:07.9]}
34... Qf5 {[%clk 0:00:36.3]} 35. Qxf5 {[%clk 0:00:04.9]} 35... exf5 {[%clk
0:00:36.7]} 36. g6 {[%clk 0:00:04]} 36... Ke6 {[%clk 0:00:37.1]} 37. Kh4 {[%clk
0:00:01.4]} 37... f4 {[%clk 0:00:35]} 38. Kg4 {[%clk 0:00:01.7]} 38... b6 {[%clk
0:00:34]} 39. Bh4 {[%clk 0:00:01.7]} 39... c5 {[%clk 0:00:33.2]} 0-1

[Event "Late-Titled-Tuesday-Blitz-September-26-2023"]
[Site "Chess.com"]
[Date "2023.09.26"]
[Round "8"]
[White "fyall777"]
[Black "Sokoloco"]
[Result "1-0"]
[WhiteElo "2595"]
[BlackElo "2687"]
[TimeControl "180+1"]
[EndTime "15:24:46 PDT"]
[Termination "fyall777 won by checkmate"]

1. e4 {[%clk 0:02:54.7]} 1... d6 {[%clk 0:02:59.1]} 2. Nf3 {[%clk 0:02:55]} 2...
g6 {[%clk 0:02:59.5]} 3. Nc3 {[%clk 0:02:55.7]} 3... Bg7 {[%clk 0:03:00]} 4. g3
{[%clk 0:02:56.3]} 4... Nf6 {[%clk 0:02:59.9]} 5. Bg2 {[%clk 0:02:56.9]} 5... e5
{[%clk 0:02:58.9]} 6. O-O {[%clk 0:02:57.1]} 6... O-O {[%clk 0:02:59.5]} 7. d3
{[%clk 0:02:56.7]} 7... c6 {[%clk 0:02:51.7]} 8. Ne1 {[%clk 0:02:55.9]} 8... Bg4
{[%clk 0:02:41.4]} 9. f3 {[%clk 0:02:55.8]} 9... Be6 {[%clk 0:02:42.2]} 10. f4
{[%clk 0:02:55.9]} 10... Qb6+ {[%clk 0:02:41]} 11. Kh1 {[%clk 0:02:55.1]} 11...
exf4 {[%clk 0:02:23.5]} 12. gxf4 {[%clk 0:02:54.8]} 12... Bg4 {[%clk 0:02:23.8]}
13. Nf3 {[%clk 0:02:45.4]} 13... Nh5 {[%clk 0:02:23.4]} 14. Qe1 {[%clk
0:02:45.5]} 14... Nd7 {[%clk 0:02:14.2]} 15. f5 {[%clk 0:02:33.3]} 15... gxf5
{[%clk 0:02:10]} 16. Qh4 {[%clk 0:02:27.1]} 16... Nhf6 {[%clk 0:01:33.2]} 17.
Bh6 {[%clk 0:02:03.7]} 17... Bxh6 {[%clk 0:01:22.7]} 18. Qxh6 {[%clk 0:02:03.1]}
18... Qxb2 {[%clk 0:01:08]} 19. Ne2 {[%clk 0:01:33.4]} 19... Bxf3 {[%clk
0:01:06.4]} 20. Bxf3 {[%clk 0:01:32.1]} 20... Kh8 {[%clk 0:01:07.1]} 21. Ng3
{[%clk 0:01:07.8]} 21... Rg8 {[%clk 0:00:59.5]} 22. Nxf5 {[%clk 0:01:06.4]}
22... Qxc2 {[%clk 0:00:51.3]} 23. Nxd6 {[%clk 0:01:02.6]} 23... Rg7 {[%clk
0:00:46.4]} 24. e5 {[%clk 0:00:57.7]} 24... Ng8 {[%clk 0:00:40.1]} 25. Qf4
{[%clk 0:00:50]} 25... Rf8 {[%clk 0:00:31.3]} 26. Be4 {[%clk 0:00:42.1]} 26...
Qb2 {[%clk 0:00:26.7]} 27. Rg1 {[%clk 0:00:32.3]} 27... Qxe5 {[%clk 0:00:25.2]}
28. Rxg7 {[%clk 0:00:24.4]} 28... Kxg7 {[%clk 0:00:20.7]} 29. Rg1+ {[%clk
0:00:23.3]} 29... Kh8 {[%clk 0:00:16.4]} 30. Nxf7+ {[%clk 0:00:21.3]} 30... Rxf7
{[%clk 0:00:16.8]} 31. Qxf7 {[%clk 0:00:21.6]} 31... Qe7 {[%clk 0:00:01.4]} 32.
Rxg8# {[%clk 0:00:18.9]} 1-0

[Event "Late-Titled-Tuesday-Blitz-September-26-2023"]
[Site "Chess.com"]
[Date "2023.09.26"]
[Round "8"]
[White "KorolDimitriy75"]
[Black "canary2016"]
[Result "1-0"]
[WhiteElo "2363"]
[BlackElo "2114"]
[TimeControl "180+1"]
[EndTime "15:24:49 PDT"]
[Termination "KorolDimitriy75 won on time"]

1. d4 {[%clk 0:03:00.9]} 1... Nf6 {[%clk 0:02:55.6]} 2. c4 {[%clk 0:03:01]} 2...
e6 {[%clk 0:02:55.2]} 3. Nc3 {[%clk 0:03:01.2]} 3... Bb4 {[%clk 0:02:55.2]} 4.
Qc2 {[%clk 0:03:01.4]} 4... O-O {[%clk 0:02:54.8]} 5. e4 {[%clk 0:03:01.7]} 5...
d5 {[%clk 0:02:54.4]} 6. cxd5 {[%clk 0:03:02.6]} 6... exd5 {[%clk 0:02:54.2]} 7.
e5 {[%clk 0:03:03.5]} 7... Ne4 {[%clk 0:02:53.9]} 8. Bd3 {[%clk 0:03:04.4]} 8...
Bf5 {[%clk 0:02:51.7]} 9. Ne2 {[%clk 0:03:00.5]} 9... Nxc3 {[%clk 0:02:48.8]}
10. bxc3 {[%clk 0:02:58.9]} 10... Bxd3 {[%clk 0:02:48.7]} 11. Qxd3 {[%clk
0:02:59.8]} 11... Be7 {[%clk 0:02:48.2]} 12. O-O {[%clk 0:02:59.7]} 12... c5
{[%clk 0:02:48.2]} 13. f4 {[%clk 0:02:59.5]} 13... Nc6 {[%clk 0:02:47.1]} 14. f5
{[%clk 0:02:52.8]} 14... Re8 {[%clk 0:02:31.7]} 15. Qg3 {[%clk 0:02:40.2]} 15...
Bf8 {[%clk 0:02:28.5]} 16. Bg5 {[%clk 0:01:45]} 16... Qb6 {[%clk 0:02:22.3]} 17.
Rab1 {[%clk 0:01:34.6]} 17... Qa6 {[%clk 0:02:21.1]} 18. Rf2 {[%clk 0:01:24.8]}
18... b6 {[%clk 0:02:04.9]} 19. Rbf1 {[%clk 0:00:59.3]} 19... cxd4 {[%clk
0:01:45.5]} 20. cxd4 {[%clk 0:00:58.2]} 20... Nb4 {[%clk 0:01:45.2]} 21. Nf4
{[%clk 0:00:54.4]} 21... Rac8 {[%clk 0:01:32.6]} 22. Nh5 {[%clk 0:00:39.6]}
22... Kh8 {[%clk 0:01:22]} 23. Nf6 {[%clk 0:00:17.4]} 23... Nd3 {[%clk
0:00:46.8]} 24. Rf3 {[%clk 0:00:12.9]} 24... Nb2 {[%clk 0:00:40.6]} 25. Qh4
{[%clk 0:00:10.1]} 25... h6 {[%clk 0:00:36.7]} 26. Rg3 {[%clk 0:00:05.9]} 26...
Qa4 {[%clk 0:00:03.2]} 27. Bxh6 {[%clk 0:00:04.6]} 1-0